bitfinex-derivatives/quotes_ETHF0:USTF0_20250107
["timestamp","ask_amount","ask_price","bid_price","bid_amount"]
[1736242700181,0.27302,3663.2,3663.1,41.07302]
[1736242703384,0.27302,3663.2,3663.1,40.8]
[1736242703584,0.27302,3663.2,3663.1,41.07302]
[1736242704488,3.6693,3663.4,3663.0,4.5561917]
[1736242704689,0.27302,3663.1,3663.0,4.5561917]
[1736242705185,0.27302,3663.1,3663.0,0.27303]
[1736242707491,0.27304,3663.0,3662.9,0.27303]
[1736242708388,0.27304,3662.9,3662.8,41.07304]
[1736242708691,3.91854,3662.9,3662.8,40.8]
[1736242708893,3.6455,3662.9,3662.6,4.2831617]
[1736242709093,0.27305,3662.7,3662.6,4.2831617]
[1736242709295,0.27305,3662.7,3662.6,45.0831617]
[1736242710493,0.27305,3662.7,3662.6,40.8]
[1736242712800,0.27305,3662.7,3662.6,41.07306]
[1736242712993,0.27305,3662.7,3662.6,40.8]
[1736242719099,0.27305,3662.7,3662.6,41.07306]
[1736242719300,0.27305,3662.7,3662.6,42.05737049]
[1736242728300,2.12818486,3663.3,3663.2,0.27301]
[1736242728508,1.43478486,3663.3,3663.2,2.30732049]
[1736242728704,1.59488777,3663.4,3663.2,7.03431049]
[1736242728903,1.04636777,3663.4,3663.3,41.07301]
[1736242729205,7.77e-06,3663.4,3663.3,41.07301]
[1736242729407,7.77e-06,3663.4,3663.3,46.07301]
[1736242730200,0.4324,3664.2,3664.1,0.27295]
[1736242730508,0.70534,3664.2,3664.1,0.27295]
[1736242730805,0.70534,3664.2,3664.1,41.07295]
[1736242731009,0.4324,3664.2,3664.1,41.07295]
[1736242731802,0.27292,3664.5,3664.4,0.27292]
[1736242733306,0.27293,3664.4,3664.3,0.27293]
[1736242735202,0.8843,3664.6,3664.4,0.27292]
[1736242735203,0.27292,3664.5,3664.4,0.27292]
[1736242735803,0.8843,3664.6,3664.0,40.8]
[1736242736007,0.27293,3664.4,3664.3,0.27292]
[1736242736208,0.8843,3664.6,3664.0,40.8]
[1736242736411,0.27292,3664.5,3664.4,0.27292]
[1736242739014,0.8843,3664.6,3664.2,2.17905329]
[1736242739215,0.8843,3664.6,3664.5,0.27292]
[1736242740611,1.15721,3664.6,3664.5,0.27292]
[1736242741013,0.27292,3664.5,3664.4,0.27292]
[1736242742619,0.8843,3664.6,3664.2,2.17905329]
[1736242742818,0.27294,3664.3,3664.2,0.27293]
[1736242744518,0.27295,3664.2,3664.1,0.27294]
[1736242748321,3.2078,3664.4,3664.0,40.8]
[1736242748517,3.48073,3664.4,3664.3,0.27293]
[1736242751424,3.2078,3664.4,3664.3,0.27293]
[1736242752219,3.48072,3664.4,3664.3,0.27293]
[1736242752418,3.2078,3664.4,3664.3,0.27293]
[1736242753323,3.2078,3664.4,3664.3,1.25619872]
[1736242757431,3.48071,3664.4,3664.3,1.25619872]
[1736242758326,3.2078,3664.4,3664.3,1.25619872]
[1736242758727,3.48071,3664.4,3664.3,1.25619872]
[1736242759026,3.2078,3664.4,3664.3,1.25619872]
[1736242763128,3.2078,3664.4,3664.3,42.05619872]
[1736242763526,1.1572,3664.6,3664.3,42.05619872]
[1736242763527,1.1572,3664.6,3664.3,41.78326872]
[1736242763734,1.1572,3664.6,3664.5,1.25616872]
[1736242765036,0.8843,3664.6,3664.5,1.25616872]
[1736242767838,1.1572,3664.6,3664.5,1.25616872]
[1736242768030,0.8843,3664.6,3664.5,1.25616872]
[1736242769839,1.1572,3664.6,3664.5,1.25616872]
[1736242771637,1.1572,3664.6,3664.5,0.2729]
[1736242771833,1.1572,3664.6,3664.5,1.25616872]
[1736242775540,1.1572,3664.6,3664.5,5.53933042]
[1736242777642,1.1572,3664.6,3664.5,46.33933042]
[1736242777843,0.8843,3664.6,3664.5,46.33933042]
[1736242778241,1.1572,3664.6,3664.5,46.33933042]
[1736242779044,1.1572,3664.6,3664.5,45.3560617]
[1736242779245,1.1572,3664.6,3664.5,46.33933042]
[1736242781143,1.1572,3664.6,3664.5,42.05616872]
[1736242783047,1.1572,3664.6,3664.5,46.33933042]
[1736242787147,0.8843,3664.6,3664.5,46.33933042]
[1736242787350,1.1572,3664.6,3664.5,46.33933042]
[1736242787945,0.8843,3664.6,3664.5,46.33933042]
[1736242788248,1.1572,3664.6,3664.5,46.33933042]
[1736242788851,0.8843,3664.6,3664.5,46.33933042]
[1736242789153,1.1572,3664.6,3664.5,46.33933042]
[1736242789952,0.8843,3664.6,3664.5,46.33933042]
[1736242790154,1.1572,3664.6,3664.5,46.33933042]
[1736242791149,0.8843,3664.6,3664.5,46.33933042]
[1736242791551,0.8843,3664.6,3664.5,46.1656206]
[1736242795649,0.8843,3664.6,3664.5,52.58879118]
[1736242796657,3.19976518,3664.7,3664.6,0.27289]
[1736242797752,3.47264518,3664.7,3664.6,0.27289]
[1736242798461,3.19976518,3664.7,3664.6,0.27289]
[1736242798760,3.19976518,3664.7,3664.6,4.38234188]
[1736242800058,0.27288,3664.8,3664.7,0.27288]
[1736242800059,3.47264518,3664.8,3664.7,0.27288]
[1736242800363,3.47263518,3664.8,3664.7,1.25614872]
[1736242801559,3.47263518,3664.8,3664.7,5.3656006]
[1736242802058,3.19976518,3664.8,3664.7,5.3656006]
[1736242802854,4.79023518,3664.9,3664.8,0.27287]
[1736242804061,1.99990108,3664.9,3664.8,4.56853889]
[1736242805264,1.72703108,3664.9,3664.8,4.56853889]
[1736242805763,1.99990108,3664.9,3664.8,4.56853889]
[1736242806562,1.72703108,3664.9,3664.8,4.56853889]
[1736242806955,5.20179728,3664.9,3664.8,4.38443718]
[1736242807466,4.92892728,3664.9,3664.8,4.38443718]
[1736242808158,4.5194962,3664.9,3664.8,0.27287]
[1736242809166,4.7923662,3664.9,3664.8,0.27287]
[1736242809363,4.5194962,3664.9,3664.8,0.27287]
[1736242809758,4.7923662,3664.9,3664.8,0.27287]
[1736242811965,4.7923662,3664.9,3664.7,7.4064393]
[1736242812367,4.7923662,3664.9,3664.8,0.27287]
[1736242815664,0.27287,3664.8,3664.7,7.6793193]
[1736242819274,0.27287,3664.8,3664.7,11.79026481]
[1736242820166,1.25613872,3664.8,3664.7,10.53411609]
[1736242821470,10.7528502,3664.8,3664.3,41.78326872]
[1736242821668,0.2729,3664.4,3664.3,41.78326872]
[1736242822672,3.88270483,3664.4,3664.3,41.78326872]
[1736242823473,0.27291,3664.3,3664.2,4.29524936]
[1736242823675,1.56851,3664.3,3664.2,4.29524936]
[1736242823866,8.24414752,3664.3,3664.2,4.29524936]
[1736242825372,8.38073024,3664.3,3664.1,0.98326872]
[1736242825574,0.27292,3664.2,3664.1,0.98326872]
[1736242826776,3.47076646,3664.2,3664.1,0.98326872]
[1736242828169,0.27292,3664.2,3664.1,0.98326872]
[1736242832181,0.27292,3664.2,3664.1,1.25619872]
[1736242832979,6.40564646,3664.4,3664.1,0.98326872]
[1736242833176,3.19784646,3664.4,3664.3,1.25617872]
[1736242833569,3.19784646,3664.4,3664.3,42.05617872]
[1736242834180,0.2729,3664.5,3664.4,0.2729]
[1736242834381,0.27289,3664.7,3664.6,0.27288]
[1736242836784,3.2078,3664.8,3664.7,0.27288]
[1736242836981,3.48067,3664.8,3664.7,0.27288]
[1736242837787,3.2078,3664.8,3664.7,0.27288]
[1736242838685,0.27287,3664.8,3664.7,0.27288]
[1736242838991,3.48067,3664.8,3664.7,0.27288]
[1736242847487,3.48067,3664.8,3664.6,0.98326872]
[1736242847488,0.27288,3664.7,3664.6,0.98326872]
[1736242847785,0.2729,3664.5,3664.4,4.29524936]
[1736242848588,1.25616872,3664.5,3664.4,4.29524936]
[1736242849397,0.2729,3664.5,3664.4,4.29524936]
[1736242849591,0.2729,3664.5,3664.4,5.27851808]
[1736242850291,3.88025818,3664.5,3664.4,5.27851808]
[1736242850491,3.88025818,3664.5,3664.4,0.98326872]
[1736242851597,3.47074646,3664.5,3664.4,0.98326872]
[1736242852294,4.31634646,3664.5,3664.4,0.98326872]
[1736242853389,4.31634646,3664.5,3664.0,0.27297]
[1736242853390,0.27298,3664.1,3664.0,0.27297]
[1736242853595,3.48078,3664.1,3664.0,0.27297]
[1736242853898,3.48078,3664.1,3664.0,42.05623872]
[1736242854086,3.48078,3664.1,3664.0,40.8]
[1736242854293,4.46404872,3664.1,3664.0,40.8]
[1736242854897,5.44731744,3664.1,3663.7,4.29524936]
[1736242855092,1.25625872,3663.8,3663.7,2.90784936]
[1736242856500,1.25625872,3663.8,3663.6,7.4064393]
[1736242856501,0.27299,3663.7,3663.6,0.98326872]
[1736242856698,3.48079,3663.7,3663.6,0.98326872]
[1736242857698,3.48079,3663.7,3663.6,1.25626872]
[1736242857995,6.67291573,3663.7,3663.6,1.25626872]
[1736242858895,6.39992573,3663.7,3663.6,1.25626872]
[1736242859295,6.39992573,3663.7,3663.6,42.05626872]
[1736242859599,3.2078,3663.7,3663.6,42.05626872]
[1736242869201,0.70499,3663.8,3663.6,41.78326872]
[1736242869401,0.432,3663.8,3663.7,0.27298]
[1736242870409,0.421,3663.9,3663.8,0.27298]
[1736242870599,0.421,3663.9,3663.8,1.25624872]
[1736242871311,0.421,3663.9,3663.8,1.67574872]
[1736242881421,0.421,3663.9,3663.8,1.25624872]
[1736242882525,0.418,3664.1,3663.8,0.98326872]
[1736242882830,0.418,3664.1,3664.0,1.25622872]
[1736242885029,0.69095,3664.1,3664.0,1.25622872]
[1736242885326,0.418,3664.1,3664.0,1.25622872]
[1736242890537,0.69095,3664.1,3664.0,1.25622872]
[1736242891830,0.418,3664.1,3664.0,1.25622872]
[1736242893234,0.69095,3664.1,3664.0,1.25622872]
[1736242895839,2.81870476,3664.1,3664.0,1.25622872]
[1736242898542,2.54575476,3664.1,3664.0,1.25622872]
[1736242898839,2.81870476,3664.1,3664.0,1.25622872]
[1736242900238,2.54575476,3664.1,3664.0,1.25622872]
[1736242900638,2.81870476,3664.1,3664.0,1.25622872]
[1736242902347,0.69095,3664.1,3664.0,1.25622872]
[1736242905450,4.29259278,3664.1,3664.0,1.25622872]
[1736242906744,1.10046705,3664.1,3664.0,1.25622872]
[1736242908050,0.69095,3664.1,3664.0,1.25622872]
[1736242909953,1.10046705,3664.1,3664.0,1.25622872]
[1736242912455,1.10046705,3664.1,3664.0,5.33474726]
[1736242918970,1.10046705,3664.1,3664.0,11.75791784]
[1736242926775,2.08373577,3664.1,3664.0,10.50168912]
[1736242927883,2.08373577,3664.1,3664.0,6.42317058]
[1736242928068,0.27298,3663.7,3663.6,40.8]
[1736242928578,1.25624872,3663.7,3663.6,40.8]
[1736242928879,2.56324872,3663.7,3663.6,40.8]
[1736242929377,2.29026872,3663.7,3663.5,7.4064393]
[1736242929575,0.27299,3663.6,3663.5,0.98326872]
[1736242929777,0.27301,3663.4,3663.3,0.98326872]
[1736242929977,0.27301,3663.4,3663.3,41.78326872]
[1736242929978,3.48081,3663.4,3663.3,41.78326872]
[1736242931080,3.89032705,3663.4,3663.3,41.78326872]
[1736242933882,6.67865775,3663.4,3663.3,41.78326872]
[1736242935886,3.47085775,3663.4,3663.3,41.78326872]
[1736242936086,6.67865775,3663.4,3663.3,41.78326872]
[1736242936286,6.67865775,3663.4,3663.3,40.8]
[1736242938388,7.08830907,3663.4,3663.3,40.8]
[1736242940488,6.67865775,3663.4,3663.3,40.8]
[1736242940785,0.27307,3662.7,3662.6,0.27306]
[1736242941088,0.27307,3662.7,3662.6,1.25632872]
[1736242941889,0.27307,3662.7,3662.6,42.05632872]
[1736242960304,0.27307,3662.7,3662.6,41.78326872]
[1736242960594,0.27307,3662.7,3662.6,40.8]
[1736242962797,0.27307,3662.7,3662.6,41.2291]
[1736242968103,0.27307,3662.7,3662.6,40.8]
[1736242972309,0.27307,3662.7,3662.6,41.07307]
[1736242972509,2.40175102,3662.7,3662.6,41.07307]
[1736242973611,2.40175102,3662.7,3662.6,40.8]
[1736242974911,2.40175102,3662.7,3662.6,41.07307]
[1736242975114,0.27307,3662.7,3662.6,41.07307]
[1736242976706,0.27307,3662.7,3662.6,40.8]
[1736242977111,0.27307,3662.7,3662.6,41.07307]
[1736242977619,2.40546146,3662.7,3662.6,41.07307]
[1736242977808,2.40546146,3662.7,3662.6,40.8]
[1736242978409,0.27307,3662.7,3662.6,40.8]
[1736242978620,3.47091775,3662.7,3662.6,40.8]
[1736242979513,4.45418647,3662.7,3662.6,40.8]
[1736242981118,1.66604236,3662.7,3662.6,40.8]
[1736242981909,0.68277364,3662.7,3662.6,40.8]
[1736242982320,4.95100351,3662.7,3662.6,40.8]
[1736242986315,5.93427223,3662.7,3662.6,40.8]
[1736242986716,0.27307,3662.5,3662.4,3.59059114]
[1736242986911,0.2731,3662.1,3662.0,3.83289767]
[1736242987107,0.27315,3661.5,3661.4,12.87440945]
[1736242987307,0.27315,3661.5,3661.4,12.21451945]
[1736242987308,4.46421872,3661.5,3661.4,12.21451945]
[1736242987513,11.14734682,3661.5,3661.4,12.21451945]
[1736242988616,0.27319,3660.9,3660.8,0.9082]
[1736242988921,3.48099,3660.9,3660.8,0.9082]
[1736242989317,4.46425872,3660.9,3660.8,0.9082]
[1736242989520,4.87396236,3660.9,3660.8,0.9082]
[1736242989719,4.60077236,3660.9,3660.1,40.8]
[1736242989917,0.98326872,3660.6,3660.3,0.98326872]
[1736242990122,0.27323,3660.5,3660.3,1.25649872]
[1736242990624,3.87226478,3660.5,3660.3,1.25649872]
[1736242990918,3.87226478,3660.5,3660.4,0.27323]
[1736242990919,3.59903478,3660.5,3660.4,0.27323]
[1736242991121,3.87225478,3660.5,3660.4,0.27323]
[1736242991314,3.59903478,3660.5,3660.4,0.27323]
[1736242991514,4.25244152,3660.8,3660.3,0.98326872]
[1736242991515,3.18933114,3660.7,3660.3,0.98326872]
[1736242991817,0.27322,3660.6,3660.5,0.98326872]
[1736242992018,3.18933114,3660.7,3660.3,0.27324]
[1736242992215,3.18933114,3660.7,3660.4,0.98326872]
[1736242992415,3.46254114,3660.7,3660.6,0.98326872]
[1736242992623,3.46254114,3660.7,3660.6,41.78326872]
[1736242994021,0.27321,3660.7,3660.6,41.78326872]
[1736242994523,0.27321,3660.7,3660.6,0.98326872]
[1736242994922,0.27321,3660.7,3660.6,1.41716872]
[1736242995222,2.3945008,3660.7,3660.6,1.41716872]
[1736242995423,2.3945008,3660.7,3660.6,42.21716872]
[1736242996315,0.27321,3660.7,3660.6,42.21716872]
[1736242997221,0.27321,3660.7,3660.6,42.49038872]
[1736242997421,0.27321,3660.7,3660.6,42.21716872]
[1736243003131,0.27321,3660.7,3660.6,40.8]
[1736243003331,4.19106872,3660.9,3660.5,0.98326872]
[1736243003527,0.27322,3660.6,3660.5,0.98326872]
[1736243003921,0.27322,3660.6,3660.5,41.78326872]
[1736243005331,0.27322,3660.6,3660.5,0.98326872]
[1736243006330,0.27322,3660.6,3660.5,41.78326872]
[1736243010237,3.48102,3660.6,3660.5,41.78326872]
[1736243014138,3.48102,3660.6,3660.5,42.05648872]
[1736243016538,3.2078,3660.6,3660.5,42.05648872]
[1736243016734,3.48102,3660.6,3660.5,42.05648872]
[1736243020742,3.2078,3660.6,3660.5,42.05648872]
[1736243020945,3.48102,3660.6,3660.5,42.05648872]
[1736243024046,3.48102,3660.6,3660.5,1.25648872]
[1736243026948,0.27322,3660.6,3660.5,1.25648872]
[1736243027348,2.39055634,3660.6,3660.5,1.25648872]
[1736243028948,2.39055634,3660.6,3660.5,42.05648872]
[1736243030049,0.27322,3660.6,3660.5,42.05648872]
[1736243032347,0.68312578,3660.6,3660.5,42.05648872]
[1736243033352,0.40990578,3660.6,3660.5,42.05648872]
[1736243033851,10.65037866,3660.6,3660.5,42.05648872]
[1736243034754,0.40990578,3660.6,3660.5,42.05648872]
[1736243036747,0.68312578,3660.6,3660.5,42.05648872]
[1736243037256,0.40990578,3660.6,3660.5,42.05648872]
[1736243037652,0.68312578,3660.6,3660.5,42.05648872]
[1736243037959,0.40990578,3660.6,3660.5,42.05648872]
[1736243038152,0.6799464,3660.7,3660.5,41.78326872]
[1736243038353,0.6799464,3660.7,3660.6,0.68982]
[1736243039053,0.6799464,3660.7,3660.6,0.4166]
[1736243039255,5.62651251,3660.7,3660.6,0.4166]
[1736243039451,5.62651251,3660.7,3660.6,0.68982]
[1736243039957,5.62651251,3660.7,3660.6,0.4166]
[1736243040153,5.62651251,3660.7,3660.6,0.68982]
[1736243040357,7.45745339,3660.7,3660.6,1.73882]
[1736243041055,7.45745339,3660.7,3660.6,0.68982]
[1736243041255,7.73066339,3660.7,3660.6,0.68982]
[1736243041760,0.27321,3660.7,3660.6,0.68982]
[1736243042862,7.74717934,3660.8,3660.7,0.27321]
[1736243043061,8.77434087,3660.8,3660.7,0.27321]
[1736243043256,0.27321,3660.7,3660.6,0.68981]
[1736243043458,8.77435087,3660.8,3660.7,0.27321]
[1736243044065,8.77435087,3660.8,3660.7,1.70267872]
[1736243044358,3.48101,3660.8,3660.7,2.15467872]
[1736243044564,3.2078,3660.8,3660.7,2.15467872]
[1736243045159,3.481,3660.8,3660.7,2.15467872]
[1736243047059,8.53960877,3660.8,3660.7,2.15467872]
[1736243047464,8.81280877,3660.8,3660.7,2.15467872]
[1736243050067,8.53960877,3660.8,3660.7,2.15467872]
[1736243050269,8.81280877,3660.8,3660.7,2.15467872]
[1736243051370,13.679633,3660.8,3660.7,1.25647872]
[1736243051867,13.679633,3660.8,3660.7,0.27321]
[1736243053066,8.34782423,3660.8,3660.7,0.27321]
[1736243055265,8.07462423,3660.8,3660.6,0.4166]
[1736243055563,0.27321,3660.7,3660.6,0.4166]
[1736243055758,0.72011,3660.7,3660.6,0.68982]
[1736243055963,0.72011,3660.7,3660.6,0.4166]
[1736243056466,1.18111,3660.7,3660.6,0.4166]
[1736243057267,0.27322,3660.6,3660.5,40.8]
[1736243057766,0.9079,3660.7,3660.2,7.89207453]
[1736243057767,0.9079,3660.7,3660.2,6.45040581]
[1736243057969,0.27324,3660.3,3660.2,6.45040581]
[1736243058272,0.27324,3660.3,3660.2,47.25040581]
[1736243058969,0.27324,3660.3,3660.2,40.8]
[1736243060477,0.27327,3659.8,3659.7,7.43367453]
[1736243060771,3.48107,3659.8,3659.7,48.23367453]
[1736243061272,3.48107,3659.8,3659.7,47.25040581]
[1736243061767,3.48107,3659.8,3659.7,48.23367453]
[1736243061968,8.15299724,3659.8,3659.7,41.78326872]
[1736243064060,8.15299724,3659.8,3659.7,40.8]
[1736243064261,3.89106873,3659.8,3659.7,40.8]
[1736243064466,3.89106873,3659.8,3659.7,41.78326872]
[1736243065073,3.61779873,3659.8,3659.7,42.05654872]
[1736243066473,3.89106873,3659.8,3659.7,42.05654872]
[1736243068177,3.89106873,3659.8,3659.7,41.78326872]
[1736243069670,7.08169257,3659.8,3659.7,41.78326872]
[1736243071575,7.08169257,3659.8,3659.7,42.05654872]
[1736243072686,6.67169384,3659.8,3659.7,42.05654872]
[1736243073980,3.48107,3659.8,3659.7,42.05654872]
[1736243074877,5.60708756,3659.8,3659.7,42.05654872]
[1736243075776,5.33381756,3659.8,3659.7,42.05654872]
[1736243076081,5.60708756,3659.8,3659.7,42.05654872]
[1736243076381,5.33381756,3659.8,3659.7,42.05654872]
[1736243077476,2.12601756,3659.8,3659.7,42.05654872]
[1736243078878,2.12601756,3659.8,3659.7,43.03981744]
[1736243079082,2.39927756,3660.0,3659.7,41.78326872]
[1736243079282,2.12601756,3660.0,3659.9,1.25653872]
[1736243079583,2.39927756,3660.0,3659.9,1.25653872]
[1736243079782,2.39927756,3660.0,3659.9,1.71293872]
[1736243082276,2.12601756,3660.0,3659.9,1.71293872]
[1736243083278,2.39927756,3660.0,3659.9,1.71293872]
[1736243084686,0.27326,3660.0,3659.9,1.71293872]
[1736243090992,3.87386361,3660.0,3659.9,1.71293872]
[1736243091688,3.87386361,3660.0,3659.9,0.72967]
[1736243091892,0.27329,3659.8,3659.7,0.27327]
[1736243092190,0.27329,3659.8,3659.7,42.05653872]
[1736243096594,0.27329,3659.7,3659.6,1.25654872]
[1736243097194,0.27329,3659.7,3659.6,42.05654872]
[1736243098296,3.46391384,3659.7,3659.6,42.05654872]
[1736243100996,3.87391283,3659.7,3659.6,42.05654872]
[1736243101192,3.87391283,3659.7,3659.6,40.8]
[1736243101598,4.32861283,3659.7,3659.6,40.8]
[1736243101898,3.60062283,3659.7,3659.6,42.05655872]
[1736243102095,3.87390283,3659.7,3659.6,42.05655872]
[1736243102290,4.9452075,3659.7,3659.6,42.05655872]
[1736243103796,0.27328,3659.7,3659.6,42.05655872]
[1736243104996,7.21843867,3659.7,3659.6,40.8]
[1736243105193,0.27328,3659.7,3659.6,41.78326872]
[1736243105504,4.9452075,3659.7,3659.6,42.05653872]
[1736243105694,4.9452075,3659.7,3659.6,40.8]
[1736243106595,11.98680792,3659.7,3659.1,6.45040581]
[1736243106793,1.25656872,3659.2,3659.1,2.98780582]
[1736243107097,0.27331,3659.1,3659.0,2.98780582]
[1736243107300,1.69517872,3659.1,3659.0,1.30798582]
[1736243107501,13.46686157,3659.1,3659.0,1.30798582]
[1736243107702,13.46686157,3659.1,3659.0,1.26158582]
[1736243108393,14.52586157,3659.1,3659.0,0.70274582]
[1736243108592,14.52586157,3659.1,3659.0,0.13474582]
[1736243108793,14.52586157,3659.1,3659.0,5.82e-06]
[1736243108997,14.52586157,3659.1,3658.1,0.98326872]
[1736243108998,0.27337,3658.2,3658.1,0.98326872]
[1736243109999,4.19106872,3658.5,3658.0,41.2618]
[1736243110200,0.27338,3658.1,3658.0,41.2618]
[1736243110902,4.46444872,3658.1,3658.0,41.2618]
[1736243111198,3.48118,3658.1,3658.0,40.8]
[1736243111593,10.35197801,3658.1,3658.0,40.8]
[1736243112298,13.94946272,3658.1,3658.0,40.8]
[1736243112900,0.27342,3657.6,3657.5,0.4533]
[1736243113098,0.27342,3657.6,3657.5,0.72672]
[1736243113300,0.27342,3657.6,3657.5,0.4533]
[1736243113497,0.27342,3657.6,3657.5,41.2533]
[1736243113901,0.27342,3657.6,3657.5,40.8]
[1736243114900,9.98641855,3657.6,3656.8,3.2078]
[1736243115198,9.98641855,3657.6,3657.0,0.27346]
[1736243115199,2.18707871,3657.5,3657.0,0.27346]
[1736243115406,9.98641855,3657.6,3657.1,0.27346]
[1736243115407,0.27344,3657.4,3657.1,0.27346]
[1736243115597,12.10623329,3657.6,3656.8,44.4481]
[1736243115598,5.32761474,3657.6,3656.8,44.4481]
[1736243115901,5.32761474,3657.6,3657.0,2.18707871]
[1736243116093,2.11981474,3657.6,3657.5,0.27343]
[1736243116294,3.18726011,3657.9,3657.5,2.18707871]
[1736243116498,3.18726011,3657.9,3657.8,3.4812]
[1736243116700,7.77251889,3658.7,3657.8,44.0078]
[1736243116701,3.18726011,3658.0,3657.8,44.0078]
[1736243116897,3.18726011,3658.0,3657.9,0.2734]
[1736243117599,0.45467486,3658.0,3657.9,41.0734]
[1736243117797,4.24968015,3658.4,3658.3,0.27337]
[1736243118004,4.24968015,3658.4,3658.3,3.48117]
[1736243118193,3.17332223,3659.2,3658.3,3.48117]
[1736243118397,0.27331,3659.1,3658.9,0.27332]
[1736243118598,0.27331,3659.0,3658.9,0.27332]
[1736243118805,0.27332,3658.9,3658.8,0.27333]
[1736243119105,0.27331,3659.1,3658.9,0.27331]
[1736243120006,0.2733,3659.2,3659.0,0.27331]
[1736243120206,0.2733,3659.2,3658.9,0.27332]
[1736243120406,5.39487871,3659.3,3658.4,0.4589]
[1736243120594,0.27331,3659.1,3658.4,0.4589]
[1736243120795,5.39487871,3659.3,3658.4,0.4589]
[1736243121000,0.27334,3658.6,3658.5,0.4213]
[1736243121305,2.18707871,3658.7,3657.6,1.4938]
[1736243121501,0.27338,3658.2,3657.8,0.2734]
[1736243121705,0.27339,3658.1,3657.7,1.16181]
[1736243121905,3.2078,3658.3,3657.7,0.8884]
[1736243122102,3.2078,3658.3,3657.8,0.2734]
[1736243122403,3.2078,3658.3,3657.8,40.8]
[1736243122605,0.2734,3657.8,3657.7,0.8884]
[1736243123207,0.2734,3657.8,3657.7,41.6884]
[1736243123801,3.89124,3658.3,3657.7,41.6884]
[1736243123998,0.2734,3657.8,3657.7,41.96181]
[1736243124408,0.2734,3657.9,3657.8,0.2734]
[1736243125204,3.2078,3658.3,3657.7,41.6884]
[1736243125406,3.48117,3658.3,3658.2,0.27337]
[1736243125706,0.27337,3658.3,3658.2,0.27337]
[1736243125899,5.39487871,3658.7,3657.8,0.68352]
[1736243126204,0.27337,3658.3,3658.2,0.27337]
[1736243126604,5.39487871,3658.7,3657.9,3.6623]
[1736243126809,5.39487871,3658.7,3657.9,0.4545]
[1736243127001,0.27338,3658.1,3658.0,0.27339]
[1736243129303,3.2078,3658.3,3657.7,43.87547871]
[1736243129509,3.2078,3658.3,3658.2,0.27337]
[1736243130207,0.4264,3659.3,3658.1,0.68345]
[1736243130512,0.27333,3658.9,3658.8,0.27332]
[1736243130907,0.27333,3658.9,3658.8,41.07332]
[1736243131609,0.27332,3658.9,3658.8,41.07333]
[1736243132005,2.61347871,3659.3,3658.8,40.8]
[1736243132515,0.27332,3658.9,3658.8,40.8]
[1736243133711,2.18707871,3659.0,3658.6,0.424]
[1736243133916,0.27334,3658.6,3658.5,0.72895]
[1736243134214,0.27334,3658.6,3658.5,41.52895]
[1736243135117,0.27334,3658.7,3658.6,0.27334]
[1736243135319,0.4192,3658.9,3658.5,41.2556]
[1736243135618,0.27334,3658.6,3658.5,41.52894]
[1736243137719,0.27334,3658.6,3658.5,41.52895]
[1736243138216,0.27334,3658.6,3658.5,41.2556]
[1736243139622,0.27334,3658.6,3658.5,41.52895]
[1736243141119,0.27334,3658.6,3658.5,0.72895]
[1736243144915,0.27334,3658.6,3658.5,0.4556]
[1736243145121,0.27334,3658.6,3658.5,0.72895]
[1736243146112,0.27334,3658.6,3658.5,0.4556]
[1736243146617,0.27334,3658.6,3658.5,0.72895]
[1736243149127,0.27334,3658.6,3658.5,0.27335]
[1736243150428,0.27334,3658.7,3658.6,0.27333]
[1736243157232,3.48112,3659.0,3658.9,0.27332]
[1736243157528,3.48111,3659.0,3658.9,0.27332]
[1736243157926,3.8912007,3659.0,3658.9,0.27332]
[1736243160030,0.27333,3658.9,3658.8,0.27333]
[1736243160230,5.80496941,3659.0,3658.7,0.433]
[1736243160530,0.27333,3658.8,3658.7,0.433]
[1736243160727,0.27335,3658.5,3658.4,41.50846]
[1736243161132,2.62007871,3658.7,3658.0,3.2078]
[1736243161335,0.27337,3658.3,3658.2,4.57058567]
[1736243161631,0.27337,3658.3,3658.2,45.09720567]
[1736243161834,0.27338,3658.2,3658.1,0.27338]
[1736243162330,0.27338,3658.2,3658.1,41.07338]
[1736243163129,0.27338,3658.2,3658.1,41.49988]
[1736243163432,0.6834707,3658.2,3658.1,41.49988]
[1736243164735,0.27338,3658.2,3658.1,41.49988]
[1736243165132,0.27338,3658.2,3658.1,41.2265]
[1736243165429,0.27338,3658.2,3658.1,41.49988]
[1736243167135,0.68353337,3658.2,3658.1,41.49988]
[1736243167433,1.12573337,3658.2,3658.1,41.49988]
[1736243167633,1.12573337,3658.2,3658.1,41.2265]
[1736243167832,1.12573337,3658.2,3658.1,41.49988]
[1736243168534,1.12573337,3658.2,3658.1,40.8]
[1736243169325,0.2734,3657.8,3657.7,4.29720567]
[1736243169529,2.46047871,3657.8,3657.7,4.29720567]
[1736243169726,2.18707871,3657.8,3657.6,4.29720567]
[1736243169930,0.27341,3657.7,3657.6,4.29720567]
[1736243171443,0.27343,3657.4,3657.3,40.8]
[1736243171739,5.66830871,3657.4,3657.3,40.8]
[1736243172536,6.13040871,3657.4,3657.3,40.8]
[1736243172739,6.54056208,3657.4,3657.3,40.8]
[1736243173944,6.54056208,3657.4,3656.6,3.2078]
[1736243173945,0.27349,3656.7,3656.6,3.2078]
[1736243174441,0.27349,3656.7,3656.6,44.0078]
[1736243175136,0.27349,3656.7,3656.6,40.8]
[1736243175639,0.27351,3656.4,3656.3,4.29720567]
[1736243175835,1.13753,3656.7,3655.8,7.77855567]
[1736243175836,0.27354,3656.0,3655.8,7.77855567]
[1736243176034,0.27355,3655.9,3655.8,7.50500567]
[1736243176742,0.27355,3655.9,3655.8,45.09720567]
[1736243177542,0.27355,3655.9,3655.8,40.8]
[1736243179240,0.27355,3655.9,3654.9,7.50500567]
[1736243179241,7.18707871,3655.9,3654.9,7.50500567]
[1736243179439,7.18707871,3655.9,3654.9,4.29720567]
[1736243179440,0.27361,3655.0,3654.9,4.29720567]
[1736243179745,3.48141,3655.0,3654.9,4.29720567]
[1736243179944,4.82651,3655.0,3654.9,4.29720567]
[1736243180141,4.82651,3655.0,3654.7,6.4476759]
[1736243180142,16.28548583,3655.0,3654.7,6.4476759]